bitfinex-derivatives/quotes_BTCF0:USTF0_20250510
["timestamp","ask_amount","ask_price","bid_price","bid_amount"]
[1746897099298,0.93463518,103550.0,103540.0,0.3185]
[1746897099497,0.82531845,103550.0,103540.0,0.3185]
[1746897099702,0.99199127,103550.0,103540.0,0.3185]
[1746897100401,0.99299127,103550.0,103540.0,0.3235]
[1746897100593,0.99299127,103550.0,103540.0,0.3205]
[1746897100594,0.82631845,103550.0,103540.0,0.3205]
[1746897100795,0.99299127,103550.0,103540.0,0.3205]
[1746897101100,1.17667127,103550.0,103540.0,0.3155]
[1746897101402,1.17567127,103550.0,103540.0,0.3165]
[1746897101594,1.00899845,103550.0,103540.0,0.3165]
[1746897101801,1.17567127,103550.0,103540.0,0.3165]
[1746897105808,1.17567127,103550.0,103540.0,0.509633]
[1746897106108,1.00899845,103550.0,103540.0,0.509633]
[1746897106301,1.17567127,103550.0,103540.0,0.509633]
[1746897107406,1.00899845,103550.0,103540.0,0.509633]
[1746897107705,1.17567127,103550.0,103540.0,0.509633]
[1746897107906,1.17567127,103550.0,103540.0,0.3165]
[1746897108102,1.17567127,103550.0,103540.0,0.221]
[1746897108302,1.00899845,103550.0,103540.0,0.221]
[1746897108500,1.17567127,103550.0,103540.0,0.221]
[1746897108706,1.17567127,103550.0,103540.0,0.2537]
[1746897109310,1.00899845,103550.0,103540.0,0.2537]
[1746897109493,1.17567127,103550.0,103540.0,0.2537]
[1746897113609,1.17567127,103550.0,103540.0,0.2527]
[1746897113800,1.17667127,103550.0,103540.0,0.2577]
[1746897114512,1.00999845,103550.0,103540.0,0.2577]
[1746897114711,1.17667127,103550.0,103540.0,0.2577]
[1746897114912,1.17667127,103550.0,103540.0,0.225]
[1746897115608,1.17667127,103550.0,103540.0,0.2569]
[1746897119811,1.11937851,103550.0,103540.0,0.2569]
[1746897120820,1.00999845,103550.0,103540.0,0.3201]
[1746897121018,1.11937851,103550.0,103540.0,0.3201]
[1746897121514,0.79461845,103550.0,103540.0,0.62261306]
[1746897121712,1.08103851,103550.0,103540.0,0.513233]
[1746897121914,0.97165845,103550.0,103540.0,0.3201]
[1746897122109,1.11283851,103550.0,103540.0,0.3201]
[1746897122823,1.00345845,103550.0,103540.0,0.513233]
[1746897123025,1.11283851,103550.0,103540.0,0.513233]
[1746897123212,1.00345845,103550.0,103540.0,0.513233]
[1746897123412,1.11283851,103550.0,103540.0,0.513233]
[1746897123916,1.11283851,103550.0,103540.0,0.3201]
[1746897124921,1.00345845,103550.0,103540.0,0.3201]
[1746897125125,1.11283851,103550.0,103540.0,0.3201]
[1746897125822,0.75203851,103550.0,103540.0,0.3201]
[1746897126024,1.11283851,103550.0,103540.0,0.3201]
[1746897126416,1.00345845,103550.0,103540.0,0.3201]
[1746897126621,1.11283851,103550.0,103540.0,0.3201]
[1746897127631,1.00345845,103550.0,103540.0,0.3201]
[1746897128125,1.11283851,103550.0,103540.0,0.3201]
[1746897128324,1.00345845,103550.0,103540.0,0.3201]
[1746897128511,1.11283851,103550.0,103540.0,0.3201]
[1746897128915,1.00345845,103550.0,103540.0,0.3201]
[1746897129116,1.11283851,103550.0,103540.0,0.3201]
[1746897130319,0.7541144,103550.0,103540.0,0.513233]
[1746897130520,0.86349446,103550.0,103540.0,0.513233]
[1746897131514,0.86349446,103550.0,103540.0,0.3201]
[1746897131714,0.92449446,103550.0,103540.0,0.3201]
[1746897131914,0.93433378,103550.0,103540.0,0.3201]
[1746897132627,0.90363378,103550.0,103540.0,0.3201]
[1746897132825,0.82575372,103550.0,103540.0,0.3201]
[1746897133025,0.93513378,103550.0,103540.0,0.3201]
[1746897133429,0.82575372,103550.0,103540.0,0.3201]
[1746897133624,0.93513378,103550.0,103540.0,0.3201]
[1746897134517,0.93513378,103550.0,103540.0,0.2894]
[1746897134717,0.93513378,103550.0,103540.0,0.2569]
[1746897135120,0.82575372,103550.0,103540.0,0.2569]
[1746897135619,0.93513378,103550.0,103540.0,0.2569]
[1746897136222,0.82575372,103550.0,103540.0,0.2569]
[1746897136430,0.93513378,103550.0,103540.0,0.2569]
[1746897137933,1.04451384,103550.0,103540.0,0.2569]
[1746897138230,0.93513378,103550.0,103540.0,0.2569]
[1746897138632,0.93513378,103550.0,103540.0,0.0469]
[1746897140033,1.11389378,103550.0,103540.0,0.0469]
[1746897140726,1.22327384,103550.0,103540.0,0.015]
[1746897140924,1.2376388,103550.0,103540.0,0.015]
[1746897141123,1.12825874,103550.0,103540.0,0.015]
[1746897141732,1.12825874,103550.0,103540.0,0.0465]
[1746897142132,1.2376388,103550.0,103540.0,0.0465]
[1746897142328,1.12825874,103550.0,103540.0,0.015]
[1746897142529,1.2376388,103550.0,103540.0,0.015]
[1746897142839,1.01887868,103550.0,103540.0,0.015]
[1746897143137,1.12825874,103550.0,103540.0,0.015]
[1746897143631,1.2376388,103550.0,103540.0,0.015]
[1746897145038,1.01887868,103550.0,103540.0,0.015]
[1746897145335,1.12825874,103550.0,103540.0,0.02955448]
[1746897146028,1.12825874,103550.0,103540.0,0.015]
[1746897146439,1.2376388,103550.0,103540.0,0.015]
[1746897146826,0.193133,103540.0,103530.0,0.0306]
[1746897147032,1.03817312,103540.0,103530.0,0.0606]
[1746897147333,1.20417312,103540.0,103530.0,0.0606]
[1746897148138,1.20617312,103540.0,103530.0,0.0616]
[1746897149239,0.987413,103540.0,103530.0,0.031]
[1746897149439,1.20417312,103540.0,103530.0,0.031]
[1746897150533,1.20617312,103540.0,103530.0,0.031]
[1746897150733,0.989413,103540.0,103530.0,0.031]
[1746897151241,1.20817312,103540.0,103530.0,0.031]
[1746897152141,1.31755318,103540.0,103530.0,0.031]
[1746897152338,0.048289,103530.0,103510.0,0.0332]
[1746897152539,0.193189,103510.0,103500.0,0.06886116]
[1746897152735,0.83780906,103510.0,103500.0,0.49348267]
[1746897152935,0.90170906,103510.0,103500.0,0.49348267]
[1746897153136,1.06770906,103510.0,103500.0,0.49348267]
[1746897153633,0.991129,103510.0,103500.0,0.52628267]
[1746897153840,1.10050906,103510.0,103500.0,0.54628267]
[1746897154234,1.07921535,103510.0,103500.0,0.54928267]
[1746897154835,1.06950906,103510.0,103500.0,0.74249037]
[1746897155036,0.927229,103510.0,103500.0,0.74249037]
[1746897155436,0.927229,103510.0,103500.0,1.21267043]
[1746897155437,0.533149,103510.0,103500.0,1.21267043]
[1746897156147,0.367149,103510.0,103500.0,1.21267043]
[1746897156339,0.368149,103510.0,103500.0,1.21567043]
[1746897157137,0.368149,103510.0,103500.0,1.20104892]
[1746897157444,0.368149,103510.0,103500.0,0.84024892]
[1746897158136,0.368149,103510.0,103500.0,1.25654892]
[1746897158334,0.368149,103510.0,103500.0,1.14716886]
[1746897163337,0.368149,103510.0,103500.0,1.25654892]
[1746897163841,0.368149,103510.0,103500.0,1.14716886]
[1746897165044,0.47752906,103510.0,103500.0,1.14716886]
[1746897165242,0.64352906,103510.0,103500.0,1.14716886]
[1746897165645,0.67462906,103510.0,103500.0,1.14716886]
[1746897167751,0.565249,103510.0,103500.0,1.14716886]
[1746897168051,0.67462906,103510.0,103500.0,1.14716886]
[1746897168353,0.565249,103510.0,103500.0,1.14716886]
[1746897168554,0.67462906,103510.0,103500.0,1.14716886]
[1746897169049,0.565249,103510.0,103500.0,1.14716886]
[1746897169240,1.03542906,103510.0,103500.0,1.14716886]
[1746897169443,0.565249,103510.0,103500.0,1.14716886]
[1746897169844,0.67462906,103510.0,103500.0,1.14716886]
[1746897170045,0.67462906,103510.0,103500.0,0.73086886]
[1746897170351,0.565249,103510.0,103500.0,0.73086886]
[1746897170554,0.67462906,103510.0,103500.0,0.73086886]
[1746897172851,0.70752906,103510.0,103500.0,0.73086886]
[1746897173552,0.74072906,103510.0,103500.0,0.73086886]
[1746897175250,0.74072906,103510.0,103500.0,0.72586886]
[1746897175754,0.631349,103510.0,103500.0,0.72586886]
[1746897175960,0.73972906,103510.0,103500.0,0.72686886]
[1746897176165,0.631349,103510.0,103500.0,1.14416886]
[1746897176351,0.598149,103510.0,103500.0,1.14416886]
[1746897176750,0.597149,103510.0,103500.0,1.14316886]
[1746897176952,0.598149,103510.0,103500.0,1.14316886]
[1746897177158,0.54152906,103510.0,103500.0,1.14316886]
[1746897178052,0.70752906,103510.0,103500.0,1.14316886]
[1746897178458,0.70652906,103510.0,103500.0,1.14316886]
[1746897178657,0.70752906,103510.0,103500.0,1.14416886]
[1746897181268,0.73812906,103510.0,103500.0,1.14416886]
[1746897183165,0.73812906,103510.0,103500.0,0.82096116]
[1746897183466,1.09892906,103510.0,103500.0,0.75606116]
[1746897183663,1.09892906,103510.0,103500.0,0.77064594]
[1746897183862,0.989549,103510.0,103500.0,0.77064594]
[1746897184060,1.09892906,103510.0,103500.0,0.77064594]
[1746897184470,1.09892906,103510.0,103500.0,0.32154594]
[1746897184660,1.20730912,103510.0,103500.0,0.06054594]
[1746897184860,1.20730912,103510.0,103500.0,0.05954594]
[1746897184861,1.20830912,103510.0,103500.0,0.05954594]
[1746897185765,1.20730912,103510.0,103500.0,0.05854594]
[1746897185967,1.20830912,103510.0,103500.0,0.05954594]
[1746897186467,1.09892906,103510.0,103500.0,0.05954594]
[1746897186663,0.989549,103510.0,103500.0,0.05954594]
[1746897186867,1.09892906,103510.0,103500.0,0.05954594]
[1746897187469,0.815589,103510.0,103500.0,0.05954594]
[1746897187661,1.09656906,103510.0,103500.0,0.12274594]
[1746897187858,1.09656906,103510.0,103500.0,0.15344594]
[1746897193072,1.09656906,103510.0,103500.0,0.12204594]
[1746897193274,1.09656906,103510.0,103500.0,0.09134594]
[1746897194872,1.09656906,103510.0,103500.0,0.05954594]
[1746897195372,1.09656906,103510.0,103500.0,0.09014594]
[1746897196077,0.987189,103510.0,103500.0,0.09014594]
[1746897196374,1.09656906,103510.0,103500.0,0.09014594]
[1746897197969,1.25696906,103510.0,103500.0,0.09014594]
[1746897200670,1.147589,103510.0,103500.0,0.09014594]
[1746897200869,1.25696906,103510.0,103500.0,0.09014594]
[1746897201273,1.25696906,103510.0,103500.0,0.12314594]
[1746897202076,1.147589,103510.0,103500.0,0.12314594]
[1746897202375,1.25696906,103510.0,103500.0,0.12314594]
[1746897203476,1.25696906,103510.0,103500.0,0.15514594]
[1746897204281,1.147589,103510.0,103500.0,0.15514594]
[1746897204577,1.25696906,103510.0,103500.0,0.15514594]
[1746897212286,0.89616906,103510.0,103500.0,0.15514594]
[1746897212486,1.45736906,103510.0,103500.0,0.15514594]
[1746897213988,1.347989,103510.0,103500.0,0.15514594]
[1746897214390,1.45736906,103510.0,103500.0,0.15514594]
[1746897215582,1.56674912,103510.0,103500.0,0.041]
[1746897215781,0.1932263,103490.0,103480.0,0.0954]
[1746897215987,0.66340636,103490.0,103480.0,0.2754]
[1746897216283,1.08612636,103490.0,103480.0,0.2754]
[1746897216493,1.09569769,103490.0,103480.0,0.2754]
[1746897216983,1.09669769,103490.0,103480.0,0.2764]
[1746897217795,0.98731763,103490.0,103480.0,0.2794]
[1746897218184,1.09669769,103490.0,103480.0,0.2794]
[1746897218581,0.98731763,103490.0,103480.0,0.2794]
[1746897218777,1.05502636,103490.0,103480.0,0.512645]
[1746897218987,0.5848463,103490.0,103480.0,0.512645]
[1746897219188,0.52822636,103490.0,103480.0,0.512645]
[1746897219891,0.4188463,103490.0,103480.0,0.52707724]
[1746897220192,1.05502636,103490.0,103480.0,0.23843224]
[1746897220386,1.05502636,103490.0,103480.0,0.3162]
[1746897220586,1.08702636,103490.0,103480.0,0.3162]
[1746897221192,1.25302636,103490.0,103480.0,0.3162]
[1746897223693,1.22102636,103490.0,103480.0,0.3162]
[1746897223894,1.1116463,103490.0,103480.0,0.3162]
[1746897224194,1.22102636,103490.0,103480.0,0.3162]
[1746897224394,0.7508463,103490.0,103480.0,0.3162]
[1746897224694,0.86022636,103490.0,103480.0,0.3162]
[1746897224894,1.22102636,103490.0,103480.0,0.3162]
[1746897225793,1.22102636,103490.0,103480.0,0.509445]
[1746897227394,1.22102636,103490.0,103480.0,0.469445]
[1746897228793,0.86022636,103490.0,103480.0,0.469445]
[1746897229595,0.89352636,103490.0,103480.0,0.469445]
[1746897231291,0.7841463,103490.0,103480.0,0.469445]
[1746897231497,0.5568263,103490.0,103480.0,0.469445]
[1746897231795,0.66620636,103490.0,103480.0,0.469445]
[1746897232098,0.69850636,103490.0,103480.0,0.469445]
[1746897233497,0.5891263,103490.0,103480.0,0.469445]
[1746897233795,0.69850636,103490.0,103480.0,0.469445]
[1746897234194,1.05930636,103490.0,103480.0,0.469445]
[1746897234602,0.69850636,103490.0,103480.0,0.469445]
[1746897235105,0.9499263,103490.0,103480.0,0.469445]
[1746897235402,1.05930636,103490.0,103480.0,0.469445]
[1746897235702,0.69850636,103490.0,103480.0,0.469445]
[1746897236091,0.5891263,103490.0,103480.0,0.469445]
[1746897236295,0.69850636,103490.0,103480.0,0.469445]
[1746897236500,1.05930636,103490.0,103480.0,0.469445]
[1746897236700,1.09120636,103490.0,103480.0,0.469445]
[1746897238103,0.73040636,103490.0,103480.0,0.469445]
[1746897238305,0.73040636,103490.0,103480.0,0.466445]
[1746897238806,0.6210263,103490.0,103480.0,0.466445]
[1746897239396,0.73040636,103490.0,103480.0,0.465445]
[1746897240610,0.73040636,103490.0,103480.0,0.467445]
[1746897243508,0.6210263,103490.0,103480.0,0.467445]
[1746897243709,0.73040636,103490.0,103480.0,0.467445]
[1746897244307,0.6210263,103490.0,103480.0,0.467445]
[1746897244510,0.73040636,103490.0,103480.0,0.467445]
[1746897245498,1.09120636,103490.0,103480.0,0.467445]
[1746897247712,0.73040636,103490.0,103480.0,0.467445]
[1746897248106,1.09120636,103490.0,103480.0,0.467445]
[1746897251114,1.09120636,103490.0,103480.0,0.883745]
[1746897252914,0.73040636,103490.0,103480.0,0.883745]
[1746897253112,1.09120636,103490.0,103480.0,0.883745]
[1746897253617,0.9818263,103490.0,103480.0,0.883745]
[1746897254101,0.73040636,103490.0,103480.0,0.883745]
[1746897254516,1.09120636,103490.0,103480.0,0.883745]
[1746897255715,0.73040636,103490.0,103480.0,0.883745]
[1746897256318,0.5568263,103490.0,103480.0,0.99312506]
[1746897256517,0.5568263,103490.0,103480.0,0.883745]
[1746897257315,0.2248263,103490.0,103480.0,0.883745]
[1746897259118,0.33420636,103490.0,103480.0,0.883745]
[1746897259303,0.36530636,103490.0,103480.0,0.883745]
[1746897259705,0.2559263,103490.0,103480.0,0.883745]
[1746897259917,0.36530636,103490.0,103480.0,0.883745]
[1746897260115,0.36530636,103490.0,103480.0,0.467445]
[1746897261210,0.53130636,103490.0,103480.0,0.467445]
[1746897262613,0.4542263,103490.0,103480.0,0.467445]
[1746897262812,0.56360636,103490.0,103480.0,0.467445]
[1746897263209,0.56360636,103490.0,103480.0,0.883745]
[1746897263409,0.56360636,103490.0,103480.0,0.89871718]
[1746897264603,0.4542263,103490.0,103480.0,0.89871718]
[1746897264807,0.56360636,103490.0,103480.0,0.89871718]
[1746897265716,0.4542263,103490.0,103480.0,0.89871718]
[1746897265917,0.56360636,103490.0,103480.0,0.89871718]
[1746897266614,0.92440636,103490.0,103480.0,0.64347218]
[1746897266816,0.9705063,103490.0,103480.0,0.61327218]
[1746897267117,1.07988636,103490.0,103480.0,0.61327218]
[1746897269718,1.07988636,103490.0,103480.0,0.64467218]
[1746897270320,1.07988636,103490.0,103480.0,0.83791718]
[1746897270619,1.07988636,103490.0,103480.0,0.64467218]
[1746897270824,1.07988636,103490.0,103480.0,0.5983]
[1746897271015,1.18926642,103490.0,103480.0,0.5983]
[1746897271211,1.07988636,103490.0,103480.0,0.5983]
[1746897271411,1.18926642,103490.0,103480.0,0.5983]
[1746897271612,1.07988636,103490.0,103480.0,0.5983]
[1746897272218,1.07988636,103490.0,103480.0,0.182]
[1746897274519,0.9705063,103490.0,103480.0,0.182]
[1746897274726,1.07988636,103490.0,103480.0,0.182]
[1746897275224,0.9705063,103490.0,103480.0,0.182]
[1746897275427,1.07988636,103490.0,103480.0,0.182]
[1746897277428,1.24028636,103490.0,103480.0,0.182]
[1746897277623,1.24028636,103490.0,103480.0,0.2122]
[1746897278927,1.1309063,103490.0,103480.0,0.2122]
[1746897279227,1.24028636,103490.0,103480.0,0.2122]
[1746897280329,1.1309063,103490.0,103480.0,0.2122]
[1746897280627,1.24028636,103490.0,103480.0,0.2122]
[1746897281030,1.23756636,103490.0,103480.0,0.2122]
[1746897281329,1.1281863,103490.0,103480.0,0.2122]
[1746897281630,1.23756636,103490.0,103480.0,0.2122]
[1746897282331,1.07716636,103490.0,103480.0,0.2122]
[1746897288019,1.07616636,103490.0,103480.0,0.2102]
[1746897288224,1.07716636,103490.0,103480.0,0.2102]
[1746897289233,1.07916636,103490.0,103480.0,0.2102]
[1746897289733,1.07716636,103490.0,103480.0,0.2102]
[1746897290931,1.18654642,103490.0,103480.0,0.2102]
[1746897291127,1.07716636,103490.0,103480.0,0.2102]
[1746897291328,1.18654642,103490.0,103480.0,0.18]
[1746897292534,0.82574642,103490.0,103480.0,0.18]
[1746897292832,1.18654642,103490.0,103480.0,0.18]
[1746897295029,1.18654642,103490.0,103480.0,0.2124]
[1746897295331,1.18654642,103490.0,103480.0,0.18]
[1746897295732,1.18654642,103490.0,103480.0,0.19466566]
[1746897296227,1.18654642,103490.0,103480.0,0.22706566]
[1746897296423,1.18654642,103490.0,103480.0,0.19466566]
[1746897297226,1.2009568,103490.0,103480.0,0.19466566]
[1746897297525,1.2009568,103490.0,103480.0,0.18]
[1746897298934,0.98419668,103490.0,103480.0,0.18]
[1746897299134,1.2029568,103490.0,103480.0,0.18]
[1746897299435,1.2019568,103490.0,103480.0,0.18]
[1746897299633,1.0521968,103490.0,103480.0,0.18]
[1746897299834,1.3519168,103490.0,103480.0,0.18]
[1746897300236,1.3489168,103490.0,103480.0,0.18]
[1746897300539,1.3519168,103490.0,103480.0,0.212]
[1746897301140,1.0521968,103490.0,103480.0,0.212]
[1746897301436,1.24253674,103490.0,103480.0,0.212]
[1746897302135,1.13315668,103490.0,103480.0,0.212]
[1746897302340,1.3519168,103490.0,103480.0,0.212]
[1746897304838,1.13315668,103490.0,103480.0,0.212]
[1746897305137,1.3519168,103490.0,103480.0,0.212]
[1746897305733,0.193245,103480.0,103470.0,0.03626231]
[1746897305935,0.94758518,103480.0,103470.0,0.02396231]
[1746897306139,1.14368518,103480.0,103470.0,0.02396231]
[1746897306541,0.1932637,103470.0,103460.0,0.0944]
[1746897306742,1.13794382,103470.0,103460.0,0.0523]
[1746897307041,1.16944382,103470.0,103460.0,0.02]
[1746897307237,1.33544382,103470.0,103460.0,0.02]
[1746897308040,1.33544382,103470.0,103460.0,0.022]
[1746897308740,1.33644382,103470.0,103460.0,0.022]
[1746897308941,1.33644382,103470.0,103460.0,0.0547]
[1746897309143,1.33644382,103470.0,103460.0,0.022]
[1746897309539,1.14318012,103470.0,103440.0,0.03396346]
[1746897309742,0.1933197,103440.0,103430.0,0.0631]
[1746897309938,0.92267982,103440.0,103430.0,0.10808471]
[1746897310133,1.01229976,103440.0,103430.0,0.37808471]
[1746897310844,0.9029197,103440.0,103430.0,0.37808471]
[1746897311149,1.01329976,103440.0,103430.0,0.3682]
[1746897311737,1.02315604,103440.0,103430.0,0.3682]
[1746897312242,0.85715604,103440.0,103430.0,0.3682]
[1746897312438,0.74877598,103440.0,103430.0,0.3682]
[1746897312638,0.85815604,103440.0,103430.0,0.3682]
[1746897313143,0.85815604,103440.0,103430.0,0.3782]
[1746897315052,0.85815604,103440.0,103430.0,0.39280839]
[1746897319556,0.85815604,103440.0,103430.0,0.3782]
[1746897319852,0.85815604,103440.0,103430.0,0.39279334]
[1746897321156,0.85815604,103440.0,103430.0,0.3782]
[1746897326164,0.89125604,103440.0,103430.0,0.3782]
[1746897326464,0.89125604,103440.0,103430.0,0.39281204]
[1746897333967,0.92185604,103440.0,103430.0,0.39281204]
[1746897335079,0.92185604,103440.0,103430.0,0.40223519]
[1746897336671,0.76219976,103440.0,103430.0,0.40223519]
[1746897336973,0.002,103440.0,103430.0,1.14575365]
[1746897337270,0.1953197,103440.0,103430.0,1.23175365]
[1746897337470,0.1953197,103440.0,103430.0,1.21714161]
[1746897337868,0.1953197,103440.0,103430.0,0.85634161]
[1746897338173,0.1953197,103440.0,103430.0,1.63344161]
[1746897342069,0.1953197,103440.0,103430.0,1.46744161]
[1746897343267,0.1953197,103440.0,103430.0,1.63344161]
[1746897344274,0.1953197,103440.0,103430.0,1.52406155]
[1746897344476,0.1953197,103440.0,103430.0,1.63344161]
[1746897344865,0.1953197,103440.0,103430.0,1.64344161]
[1746897345267,0.1953197,103440.0,103430.0,1.47744161]
[1746897347181,0.1953197,103440.0,103430.0,1.64344161]
[1746897348170,0.1953197,103440.0,103430.0,1.47744161]
[1746897349675,0.1953197,103440.0,103430.0,1.36806155]
[1746897349890,0.2256197,103440.0,103430.0,1.36806155]
[1746897350181,0.2256197,103440.0,103430.0,1.47744161]
[1746897355081,0.2256197,103440.0,103430.0,1.64344161]
[1746897356081,0.2256197,103440.0,103430.0,1.47744161]
[1746897356378,0.2256197,103440.0,103430.0,1.11664161]
[1746897356580,0.2256197,103440.0,103430.0,1.47744161]
[1746897359680,0.2580197,103440.0,103430.0,1.47744161]
[1746897364687,0.2580197,103440.0,103430.0,1.36806155]
[1746897364889,0.2580197,103440.0,103430.0,1.47744161]
[1746897365076,0.2887197,103440.0,103430.0,1.47744161]
[1746897366583,0.2887197,103440.0,103430.0,1.36806155]
[1746897366790,0.2887197,103440.0,103430.0,1.47744161]
[1746897368789,0.2887197,103440.0,103430.0,1.49232843]
[1746897371296,0.2887197,103440.0,103430.0,1.38294837]
[1746897371793,0.2887197,103440.0,103430.0,1.49232843]
[1746897372200,0.75889976,103440.0,103430.0,0.94222522]
[1746897372385,0.75889976,103440.0,103430.0,0.90952522]
[1746897372785,0.75889976,103440.0,103430.0,0.71618682]
[1746897373195,0.92489976,103440.0,103430.0,0.71618682]
[1746897373897,1.03427982,103440.0,103430.0,0.71618682]
[1746897374191,1.03427982,103440.0,103430.0,0.29988682]
[1746897374389,0.8155197,103440.0,103430.0,0.29988682]
[1746897374588,1.03427982,103440.0,103430.0,0.29988682]
[1746897375293,1.03427982,103440.0,103430.0,0.05988682]
[1746897375596,1.18367982,103440.0,103430.0,0.05988682]
[1746897375991,0.9649197,103440.0,103430.0,0.05988682]
[1746897376193,1.07429976,103440.0,103430.0,0.05988682]
[1746897377898,0.9649197,103440.0,103430.0,0.05988682]
[1746897378197,1.07429976,103440.0,103430.0,0.05988682]
[1746897380191,1.18367982,103440.0,103430.0,0.05988682]
[1746897380587,0.1933571,103420.0,103410.0,0.06396461]
[1746897380797,0.71063722,103420.0,103410.0,0.18396461]
[1746897381101,1.69323722,103420.0,103410.0,0.18396461]
[1746897381800,1.69423722,103420.0,103410.0,0.18896461]
[1746897382201,1.85563722,103420.0,103410.0,0.18896461]
[1746897382497,1.69523722,103420.0,103410.0,0.18896461]
[1746897382701,1.69523722,103420.0,103410.0,0.00896461]
[1746897384498,1.7099085,103420.0,103410.0,0.00896461]
[1746897386901,1.7099085,103420.0,103410.0,0.00912212]
[1746897392299,1.8703085,103420.0,103410.0,0.00912212]
[1746897393908,1.8703085,103420.0,103410.0,0.04232212]
[1746897394708,1.8693085,103420.0,103410.0,0.04232212]
[1746897394908,1.8703085,103420.0,103410.0,0.03732212]
[1746897395408,1.65154838,103420.0,103410.0,0.03732212]
[1746897395610,1.8703085,103420.0,103410.0,0.03732212]
[1746897396113,1.7043085,103420.0,103410.0,0.03732212]
[1746897397111,1.8703085,103420.0,103410.0,0.03732212]
[1746897401406,1.65154838,103420.0,103410.0,0.03732212]
[1746897401614,1.8703085,103420.0,103410.0,0.03732212]
[1746897401814,1.8703085,103420.0,103410.0,0.06812212]
[1746897402107,1.7043085,103420.0,103410.0,0.06812212]
[1746897402313,1.5429085,103420.0,103410.0,0.06812212]
[1746897402503,1.5449085,103420.0,103410.0,0.06912212]
[1746897403111,1.5429085,103420.0,103410.0,0.10102212]
[1746897403410,1.5449085,103420.0,103410.0,0.10202212]
[1746897405106,1.7109085,103420.0,103410.0,0.10202212]
[1746897405311,1.7109085,103420.0,103410.0,0.11691592]
[1746897406204,1.5449085,103420.0,103410.0,0.11691592]
[1746897407407,1.43492844,103420.0,103410.0,0.12691592]
[1746897408813,1.32554838,103420.0,103410.0,0.12691592]
[1746897409010,1.43492844,103420.0,103410.0,0.12691592]
[1746897409211,1.32554838,103420.0,103410.0,0.12691592]
[1746897409415,1.43492844,103420.0,103410.0,0.12691592]
[1746897409615,0.1963571,103420.0,103410.0,0.68967178]
[1746897409914,0.1963571,103420.0,103410.0,0.58029172]
[1746897410113,0.1963571,103420.0,103410.0,0.74629172]
[1746897410813,0.30573716,103420.0,103410.0,0.74629172]
[1746897411315,0.1963571,103420.0,103410.0,0.74629172]
[1746897412206,0.2273571,103420.0,103410.0,0.74629172]
[1746897416822,0.1963571,103420.0,103410.0,0.85567178]
[1746897417010,0.1963571,103420.0,103410.0,1.21647178]
[1746897417320,0.1963571,103420.0,103410.0,0.85567178]
[1746897420222,0.1963571,103420.0,103410.0,0.74629172]
[1746897420617,0.2271571,103420.0,103410.0,0.74629172]
[1746897420922,0.33653716,103420.0,103410.0,0.74629172]
[1746897421121,0.2271571,103420.0,103410.0,0.74629172]
[1746897421425,0.2271571,103420.0,103410.0,0.58029172]
[1746897427130,0.2271571,103420.0,103410.0,0.74629172]
[1746897428238,0.2271571,103420.0,103410.0,0.58029172]
[1746897429428,0.2571571,103420.0,103410.0,0.58029172]
[1746897430131,0.2571571,103420.0,103410.0,0.74629172]
[1746897433335,0.2571571,103420.0,103410.0,0.55291592]
[1746897433630,0.2571571,103420.0,103410.0,0.74629172]
[1746897434134,0.2571571,103420.0,103410.0,0.58029172]
[1746897438433,0.6179571,103420.0,103410.0,0.58029172]
[1746897438936,0.2571571,103420.0,103410.0,0.58029172]
[1746897446742,0.2571571,103420.0,103410.0,0.56539792]
[1746897447535,0.2571571,103420.0,103410.0,0.67477798]
[1746897448550,0.2271571,103420.0,103410.0,0.67477798]
[1746897449040,0.003,103420.0,103410.0,1.65125804]
[1746897449245,0.5193378,103440.0,103430.0,0.1933384]
[1746897449439,0.5507378,103440.0,103430.0,0.92351846]
[1746897449637,0.4025378,103440.0,103430.0,0.9096384]
[1746897449843,0.4025378,103440.0,103430.0,1.01901846]
[1746897450147,0.4025378,103440.0,103430.0,0.9096384]
[1746897450346,0.4025378,103440.0,103430.0,0.9086384]
[1746897450756,0.54241786,103440.0,103430.0,0.5478384]
[1746897451044,0.90421786,103440.0,103430.0,0.5478384]
[1746897451445,0.7948378,103440.0,103430.0,0.5478384]
[1746897451640,0.90421786,103440.0,103430.0,0.5478384]
[1746897451833,0.90521786,103440.0,103430.0,0.5478384]
[1746897452646,0.7958378,103440.0,103430.0,0.5478384]
[1746897455437,0.4350378,103440.0,103430.0,0.5478384]
[1746897455638,0.7958378,103440.0,103430.0,0.65721846]
[1746897455947,0.4350378,103440.0,103430.0,0.65721846]
[1746897456150,0.54441786,103440.0,103430.0,0.5478384]
[1746897456643,0.7958378,103440.0,103430.0,0.5478384]
[1746897457649,0.4350378,103440.0,103430.0,0.5478384]
[1746897458848,0.3867036,103440.0,103430.0,0.5478384]
[1746897465457,0.3867036,103440.0,103430.0,0.9086384]
[1746897465644,0.3867036,103440.0,103430.0,0.5478384]
[1746897468154,0.49608366,103440.0,103430.0,0.5478384]
[1746897469955,0.002,103440.0,103430.0,0.9641384]
[1746897470151,0.03405088,103450.0,103440.0,0.1933197]
[1746897470349,0.19475198,103450.0,103440.0,1.31645753]
[1746897470649,0.19475198,103450.0,103440.0,1.20707747]
[1746897471051,0.19475198,103450.0,103440.0,1.31645753]
[1746897471453,0.19575198,103450.0,103440.0,1.31645753]
[1746897471758,0.19575198,103450.0,103440.0,1.31545753]
[1746897472254,0.00245088,103450.0,103440.0,2.00442725]
[1746897472461,0.7426133,103470.0,103440.0,1.90977555]
[1746897472660,0.6811133,103470.0,103460.0,0.30266246]
[1746897472955,0.6811133,103470.0,103460.0,0.4532824]
[1746897473157,0.7115133,103470.0,103460.0,0.5492824]
[1746897473551,0.7155133,103470.0,103460.0,0.5492824]
[1746897473953,0.7115133,103470.0,103460.0,0.5492824]
[1746897474359,0.7115133,103470.0,103460.0,0.56368487]
[1746897474856,0.7155133,103470.0,103460.0,0.56368487]
[1746897475557,0.7115133,103470.0,103460.0,0.56368487]
[1746897475754,0.7125133,103470.0,103460.0,0.56368487]
[1746897479359,0.7451133,103470.0,103460.0,0.56368487]
[1746897483260,0.3033939,103470.0,103460.0,1.03386493]
[1746897483451,0.001,103470.0,103460.0,1.14324499]
[1746897483651,0.1942637,103470.0,103460.0,1.14324499]
[1746897484046,0.001,103470.0,103460.0,1.14324499]
[1746897484254,0.0301,103480.0,103470.0,0.1932637]
[1746897484457,0.3222559,103490.0,103480.0,0.193245]
[1746897484652,0.3523559,103490.0,103480.0,1.01712506]
[1746897485449,0.3523559,103490.0,103480.0,1.01512506]
[1746897485657,0.3523559,103490.0,103480.0,1.02457613]
[1746897486155,0.3523559,103490.0,103480.0,0.91519607]